bitfinex/quotes_ETHUSD_20251012
["timestamp","ask_amount","ask_price","bid_price","bid_amount"]
[1760304668475,4.78211267,4124.2,4124.1,0.007]
[1760304670585,8.12853267,4124.2,4124.1,0.007]
[1760304670900,8.12853267,4124.2,4124.1,1e-08]
[1760304671206,1.92,4124.1,4123.2,0.002]
[1760304671513,4.56594191,4123.3,4123.2,0.002]
[1760304671676,2.1407,4123.3,4123.2,0.002]
[1760304671874,2.5759,4123.3,4123.2,0.002]
[1760304672180,0.1914,4123.8,4123.2,0.002]
[1760304672582,0.17332589,4125.5,4123.2,0.002]
[1760304672583,0.2375,4124.3,4123.2,0.002]
[1760304672819,0.4186,4123.7,4123.2,0.002]
[1760304673114,0.4186,4123.7,4123.2,2.42726975]
[1760304673313,28.174766,4122.7,4118.1,0.005]
[1760304673527,2.66456664,4120.2,4118.1,0.005]
[1760304673674,2.66456664,4120.2,4118.1,0.1424]
[1760304673675,4.58456664,4120.2,4118.1,0.1424]
[1760304674006,1.92,4120.1,4118.1,0.005]
[1760304674217,2.42765585,4119.2,4118.1,0.005]
[1760304674513,6.97971985,4119.2,4118.1,0.005]
[1760304674669,8.57408028,4119.2,4118.1,0.005]
[1760304675170,5.84285843,4119.2,4118.1,0.005]
[1760304675377,2.42824534,4118.2,4118.1,0.005]
[1760304675624,2.42824534,4118.2,4116.1,0.005]
[1760304675625,10.267603,4118.1,4116.1,0.005]
[1760304675786,19.82648442,4117.2,4116.1,0.005]
[1760304676300,20.33629011,4117.2,4116.1,0.005]
[1760304676498,20.33629011,4117.2,4116.1,1e-08]
[1760304676499,2.42942519,4116.2,4116.1,1e-08]
[1760304676701,2.42942519,4116.2,4114.1,0.005]
[1760304676702,2.43040911,4114.6,4114.1,0.005]
[1760304676929,1.92,4115.2,4114.1,0.005]
[1760304677150,2.301743,4115.2,4114.1,0.005]
[1760304677359,2.1575,4114.2,4114.1,0.005]
[1760304677648,3.37888209,4114.2,4114.1,0.005]
[1760304677805,3.83138209,4114.2,4114.1,0.005]
[1760304678008,2.43066527,4114.1,4112.3,2.43172101]
[1760304678207,0.4525,4114.0,4112.1,2.43180587]
[1760304678443,1.92,4113.9,4112.2,2.43175253]
[1760304678603,2.43092148,4113.7,4112.4,2.43165098]
[1760304678944,2.43115389,4113.3,4111.8,0.4339]
[1760304679148,2.43115389,4113.3,4111.7,2.4320537]
[1760304679345,2.43114622,4113.3,4112.0,2.43185105]
[1760304679651,0.00837933,4113.2,4111.3,2.86618262]
[1760304679820,0.00837933,4113.2,4112.2,2.43178142]
[1760304680019,2.43171209,4112.4,4111.1,0.005]
[1760304680226,0.4525,4112.5,4111.1,0.005]
[1760304680432,2.43196389,4112.0,4111.1,0.005]
[1760304680636,1.92,4112.2,4111.1,0.005]
[1760304680950,0.6163,4112.1,4111.1,0.005]
[1760304681158,0.1216,4111.8,4111.1,0.1266]
[1760304681446,2.88146712,4112.1,4111.1,0.005]
[1760304681605,0.4496,4112.1,4111.1,0.005]
[1760304682765,2.43215676,4111.6,4111.1,0.005]
[1760304682963,2.4321964,4111.6,4111.1,0.005]
[1760304683163,0.4468,4111.5,4111.1,0.005]
[1760304683563,2.43198394,4111.9,4111.1,0.005]
[1760304683564,1.92,4112.0,4111.1,0.005]
[1760304683865,0.4468,4111.4,4111.1,0.005]
[1760304684222,0.4468,4111.3,4111.1,0.005]
[1760304684542,0.4468,4112.4,4111.7,2.43202607]
[1760304684739,0.4468,4112.4,4112.0,2.43189492]
[1760304684953,0.4468,4112.4,4111.1,0.005]
[1760304685153,0.1695,4112.6,4111.3,2.43232067]
[1760304685325,0.1695,4112.6,4112.0,2.43185513]
[1760304685527,0.4468,4112.9,4111.3,2.43232067]
[1760304686030,0.4468,4112.9,4112.1,2.4318402]
[1760304686423,0.4468,4112.9,4112.2,2.43178833]
[1760304686646,0.4441,4113.6,4112.2,2.43178833]
[1760304687649,0.4441,4113.6,4112.2,3.06538833]
[1760304687844,0.001,4113.2,4112.2,3.06538833]
[1760304688178,0.001,4113.2,4112.2,3.49928833]
[1760304688360,0.001,4113.2,4112.2,3.06538833]
[1760304688557,0.001,4113.2,4112.2,3.49928833]
[1760304688880,0.001,4113.2,4113.1,2.43125623]
[1760304689568,0.001,4113.2,4112.2,0.6336]
[1760304689942,0.001,4113.2,4113.1,2.43125623]
[1760304691589,0.001,4113.2,4113.1,3.18565623]
[1760304691877,0.001,4113.2,4113.1,3.61955623]
[1760304692040,0.001,4113.7,4113.6,3.06456071]
[1760304692443,0.005,4114.9,4114.8,3.06385177]
[1760304692644,1e-08,4114.9,4114.8,3.06385177]
[1760304692989,1e-08,4114.9,4114.8,3.49775177]
[1760304694085,1e-08,4115.9,4115.2,0.6336]
[1760304694267,1e-08,4115.9,4115.8,3.0632613]
[1760304694643,1e-08,4115.9,4115.8,3.4971613]
[1760304694956,1e-08,4116.4,4116.3,3.06296617]
[1760304695379,1e-08,4116.4,4116.3,3.49686617]
[1760304695599,1e-08,4116.9,4116.4,3.06290716]
[1760304695765,1e-08,4116.9,4116.8,3.06267112]
[1760304696178,1e-08,4116.9,4116.8,3.49657112]
[1760304697385,1e-08,4116.9,4116.2,0.1363]
[1760304697691,1e-08,4116.9,4115.9,0.6336]
[1760304697866,1e-08,4116.9,4115.5,0.4339]
[1760304698191,1e-08,4116.9,4114.9,0.4339]
[1760304698353,1e-08,4116.9,4115.9,2.42957427]
[1760304698560,1e-08,4116.9,4116.3,2.42936189]
[1760304699285,1e-08,4116.9,4116.2,2.42941841]
[1760304699864,1e-08,4116.9,4115.2,0.6336]
[1760304700071,1e-08,4116.9,4116.1,2.4294293]
[1760304700255,4.34902688,4116.9,4116.1,2.4294293]
[1760304700460,2.42902335,4116.9,4115.0,0.6336]
[1760304700659,2.42902335,4116.9,4116.1,2.42945754]
[1760304701466,0.4338,4116.8,4114.7,0.973]
[1760304701791,2.86296074,4116.7,4115.5,2.42982738]
[1760304701998,2.42941237,4116.3,4115.4,2.42988303]
[1760304702294,2.42936986,4116.3,4115.7,0.1208]
[1760304702506,2.86316986,4116.3,4115.7,0.1208]
[1760304703101,0.1208,4116.4,4115.7,0.1208]
[1760304703298,1e-08,4116.9,4116.3,2.42934145]
[1760304703500,1e-08,4116.9,4115.7,0.6336]
[1760304703676,1e-08,4116.9,4116.8,2.42907112]
[1760304705186,1e-08,4116.9,4116.8,3.53307112]
[1760304707110,0.00100001,4116.9,4116.8,3.53307112]
[1760304708998,0.00100001,4116.9,4116.8,3.06267112]
[1760304709188,0.00100001,4116.9,4116.8,2.42907112]
[1760304709782,0.00100001,4116.9,4116.8,3.06267112]
[1760304710114,0.00100001,4116.9,4116.8,3.53307112]
[1760304712888,0.16841825,4118.5,4118.4,2.42812742]
[1760304713321,0.16841825,4118.5,4118.4,2.54892742]
[1760304713786,0.16841825,4118.5,4118.4,0.1208]
[1760304713988,1.67315704,4116.3,4114.2,0.1208]
[1760304714215,3.29964,4118.1,4114.4,0.4704]
[1760304714520,2.42948474,4116.1,4114.4,0.4704]
[1760304714683,2.42930716,4116.4,4114.8,2.43024481]
[1760304715013,2.42930716,4116.4,4115.0,2.4300971]
[1760304715014,2.42950994,4116.1,4115.0,2.4300971]
[1760304715220,2.42954626,4116.0,4115.1,0.005]
[1760304715386,2.42948149,4116.2,4115.1,2.43503161]
[1760304715582,2.42948619,4116.1,4115.1,2.43503161]
[1760304717593,2.42948619,4116.1,4115.1,0.005]
[1760304718193,2.42954415,4116.0,4115.1,0.005]
[1760304718429,2.42960317,4115.9,4115.1,0.005]
[1760304719030,0.4466,4115.9,4115.1,0.005]
[1760304719227,0.626,4115.9,4115.1,0.005]
[1760304719707,2.4299565,4115.3,4115.1,0.005]
[1760304720328,4.7938565,4115.3,4115.1,0.005]
[1760304720628,2.43060619,4114.2,4114.1,0.005]
[1760304720997,4.79450619,4114.2,4114.1,0.005]
[1760304721206,0.4439,4115.0,4114.1,0.005]
[1760304721428,2.43038289,4114.6,4114.1,0.005]
[1760304721615,2.43043445,4114.5,4114.1,0.005]
[1760304721798,2.43038357,4114.6,4114.1,0.005]
[1760304722125,0.4439,4114.4,4114.1,0.005]
[1760304722329,2.43060619,4114.2,4114.1,0.005]
[1760304722725,2.87450619,4114.2,4114.1,0.005]
[1760304724697,0.4439,4114.2,4114.1,0.005]
[1760304724908,4.79450619,4114.2,4114.1,0.005]
[1760304725705,4.79450619,4114.2,4114.1,0.007]
[1760304726947,2.3639,4114.2,4114.1,0.007]
[1760304727845,4.79450619,4114.2,4114.1,0.007]
[1760304728339,2.3639,4114.2,4114.1,0.007]
[1760304728510,5.309744,4114.7,4114.1,0.007]
[1760304728714,2.43031486,4114.7,4114.1,0.007]
[1760304728918,4.35031486,4114.7,4114.1,0.007]
[1760304729218,4.35031403,4114.7,4114.1,0.007]
[1760304730028,2.43037652,4114.6,4114.1,0.007]
[1760304730224,1.92,4114.7,4114.1,0.007]
[1760304730531,3.468126,4114.3,4114.1,0.007]
[1760304730845,0.4439,4114.5,4114.1,0.007]
[1760304730846,2.43060619,4114.2,4114.1,0.007]
[1760304731239,2.87450619,4114.2,4114.1,0.007]
[1760304731751,2.3639,4114.2,4114.1,0.007]
[1760304733160,1.92,4114.2,4114.1,0.007]
[1760304733338,0.4439,4114.8,4114.1,0.007]
[1760304733828,2.3639,4114.8,4114.1,0.007]
[1760304734031,4.79415886,4114.8,4114.1,0.007]
[1760304734241,2.3639,4114.8,4114.1,2.43765926]
[1760304734535,2.3639,4114.8,4114.1,0.007]
[1760304734736,2.3639,4114.8,4114.3,2.43049201]
[1760304735140,2.3639,4114.8,4114.4,2.43047424]
[1760304735330,0.4439,4114.7,4114.1,2.43761081]
[1760304735529,0.4439,4114.7,4114.1,0.007]
[1760304735726,0.4439,4114.7,4114.3,2.43050064]
[1760304735965,0.4439,4114.7,4114.4,2.430483]
[1760304736169,0.4439,4114.7,4114.3,2.43053575]
[1760304736369,0.4439,4114.7,4114.1,0.007]
[1760304736370,0.4439,4115.5,4114.9,2.43015645]
[1760304736676,0.4439,4115.5,4114.1,0.2212]
[1760304736965,0.4439,4115.5,4115.1,2.43006442]
[1760304737141,18.1879248,4116.0,4110.6,0.99999999]
[1760304737142,2.43032301,4114.7,4110.6,0.99999999]
[1760304737342,2.43165055,4112.5,4112.1,0.005]
[1760304737545,2.43142805,4112.9,4112.1,0.005]
[1760304737771,2.22215,4113.5,4112.1,0.005]
[1760304737772,0.4703,4112.4,4112.1,0.005]
[1760304737932,4.35178833,4112.2,4112.1,0.005]
[1760304738132,2.43178833,4112.2,4112.1,0.005]
[1760304738370,2.90208833,4112.2,4112.1,0.005]
[1760304739668,2.43232067,4111.3,4111.1,0.005]
[1760304739970,2.1407,4111.2,4111.1,0.005]
[1760304740271,2.611,4111.2,4111.1,0.005]
[1760304741067,5.04337984,4111.2,4111.1,0.005]
[1760304742174,3.12337984,4111.2,4111.1,0.005]
[1760304742940,0.691,4111.2,4111.1,0.005]
[1760304743134,18.88175883,4111.2,4111.1,0.005]
[1760304743538,18.88175883,4111.2,4110.1,0.005]
[1760304743539,2.43285602,4110.4,4110.1,0.005]
[1760304743863,2.43297163,4110.2,4110.1,0.005]
[1760304744068,2.3903,4110.3,4108.3,2.43405151]
[1760304744272,15.75837899,4109.4,4108.1,0.005]
[1760304744776,0.4703,4109.9,4108.8,2.43375246]
[1760304744949,0.4703,4109.9,4108.9,2.43373643]
[1760304745155,0.4703,4109.9,4108.2,0.6336]
[1760304745484,0.4703,4109.9,4108.4,2.43403712]
[1760304745685,0.4703,4109.9,4109.0,2.43363044]
[1760304745975,0.4703,4109.9,4109.6,0.002]
[1760304746178,0.4703,4109.8,4109.6,0.002]
[1760304747048,0.4703,4109.7,4109.6,0.002]
[1760304748656,2.417,4109.5,4109.1,0.005]
[1760304748856,2.43356371,4109.2,4109.1,0.005]
[1760304749495,2.43390747,4108.7,4108.1,0.005]
[1760304749697,2.43380357,4108.8,4108.1,0.005]
[1760304749997,1.4444762,4111.0,4108.1,0.005]
[1760304749998,0.4703,4108.6,4108.1,0.005]
[1760304750621,0.4703,4109.0,4108.1,0.005]
[1760304750762,0.4703,4109.0,4108.2,2.43415607]
[1760304750957,0.2207,4110.2,4108.1,0.005]
[1760304750958,0.4703,4109.6,4108.1,0.005]
[1760304751493,0.4703,4109.6,4108.2,2.43415607]
[1760304751793,0.4703,4109.5,4108.2,2.43415607]
[1760304751979,0.4703,4109.5,4108.1,0.005]
[1760304751980,0.4703,4109.5,4109.0,2.43363614]
[1760304752183,0.4703,4109.4,4109.0,2.43363614]
[1760304752387,0.4703,4109.3,4109.1,2.43360767]
[1760304752586,0.4703,4109.3,4109.1,2.43358879]
[1760304752762,0.4703,4109.2,4108.3,2.43404604]
[1760304752963,0.4703,4109.2,4108.9,2.43370253]
[1760304753214,0.4703,4109.1,4108.7,0.1216]
[1760304753424,0.4703,4109.1,4108.5,0.1216]
[1760304753700,0.4703,4109.1,4108.4,2.43401031]
[1760304753701,0.4703,4109.1,4108.2,2.43415607]
[1760304753920,0.4703,4109.1,4109.0,2.43368216]
[1760304754100,0.4703,4109.1,4108.7,0.1216]
[1760304754265,0.1216,4108.9,4108.2,0.1216]
[1760304754467,0.4703,4108.8,4108.2,0.1216]
[1760304754674,0.4703,4108.8,4108.1,0.005]
[1760304754994,1.92,4108.7,4108.1,0.005]
[1760304755406,0.4703,4108.6,4108.1,0.005]
[1760304755610,12.462359,4108.5,4108.1,0.005]
[1760304755788,2.43415607,4108.2,4108.1,0.005]
[1760304755985,13.17325707,4108.2,4108.1,0.005]
[1760304756202,1.92,4108.1,4107.1,0.005]
[1760304756413,2.65544873,4107.2,4106.1,0.005]
[1760304756594,0.2207,4107.2,4106.1,0.005]
[1760304756792,0.4703,4107.1,4106.1,0.005]
[1760304757490,0.4703,4107.1,4106.6,2.43504644]
[1760304757804,0.4703,4107.0,4106.1,2.44037387]
[1760304758001,0.4703,4106.9,4106.1,0.005]
[1760304758207,0.2207,4107.2,4106.1,0.005]
[1760304758407,0.4703,4106.9,4106.1,0.005]
[1760304758914,0.2207,4107.2,4106.8,2.43492966]
[1760304759078,0.4703,4107.6,4106.1,0.005]
[1760304759289,0.4703,4107.6,4106.3,2.43528237]
[1760304759499,0.4703,4107.6,4107.1,2.43475646]
[1760304759692,0.2207,4107.7,4107.2,2.43473237]
[1760304759900,0.2207,4107.7,4107.0,2.43486729]
[1760304759901,0.4407,4107.5,4107.0,2.43486729]
[1760304760095,0.4407,4107.4,4107.1,2.43479608]
[1760304760296,0.4407,4107.3,4106.1,0.6386]
[1760304760502,0.4407,4107.3,4106.5,2.43513766]
[1760304760700,0.4407,4107.3,4106.8,2.43495184]
[1760304761017,0.4577933,4107.2,4106.3,2.43528237]
[1760304761215,0.4577933,4107.2,4106.1,0.005]
[1760304761407,0.0170933,4107.2,4107.1,2.43480801]
[1760304762492,1e-08,4107.2,4107.1,3.06840801]
[1760304762692,1e-08,4107.2,4107.1,3.52270801]
[1760304763095,1e-08,4107.2,4107.1,19.281087]
[1760304764029,1e-08,4107.2,4107.1,19.283087]
[1760304764185,0.0170933,4109.6,4109.3,2.4334978]
[1760304764388,0.0170933,4109.6,4109.5,2.43338605]
[1760304765199,0.0170933,4109.6,4109.5,3.64288605]
[1760304765799,0.005,4110.9,4109.8,3.06680842]
[1760304766227,0.005,4110.9,4109.8,3.52110842]
[1760304766828,0.005,4110.9,4109.8,2.43320842]
[1760304767026,0.4649,4110.8,4109.8,2.43320842]
[1760304767993,0.4649,4110.3,4109.7,2.43324552]
[1760304768328,0.6982,4109.8,4108.2,2.43415607]
[1760304768501,0.4649,4109.8,4109.5,2.43338559]
[1760304769318,1.92,4110.4,4109.5,2.43336393]
[1760304769925,2.43281279,4110.5,4109.5,2.43336393]
[1760304770136,0.4699,4109.9,4108.7,0.6336]
[1760304770350,0.4649,4109.8,4108.7,2.43385985]
[1760304770506,0.4649,4109.8,4109.4,2.43340266]
[1760304770703,0.2333,4109.5,4107.1,0.002]
[1760304770907,0.2333,4109.5,4107.1,2.43680288]
[1760304770908,0.4649,4109.4,4107.1,2.43680288]
[1760304771111,3.115406,4109.3,4107.4,1.4283]
[1760304771353,0.4649,4109.2,4108.2,2.43412053]
[1760304771637,2.43385586,4108.8,4107.4,0.974]
[1760304771937,0.4649,4108.7,4107.4,3.40858274]
[1760304772118,0.4649,4108.6,4107.4,3.40858274]
[1760304772314,0.4649,4108.5,4107.4,0.974]
[1760304772519,0.4649,4108.5,4107.5,2.43451586]
[1760304772730,0.4649,4108.5,4107.5,2.4345709]
[1760304773032,0.4649,4109.1,4107.7,0.6336]
[1760304773342,0.4649,4109.1,4108.4,2.43402671]
[1760304773508,0.4649,4109.1,4107.5,0.6336]
[1760304773862,0.4649,4109.1,4109.0,2.43368216]
[1760304774048,0.4649,4109.6,4108.0,0.6336]
[1760304774345,0.4649,4109.6,4107.4,1.4283]
[1760304774346,0.4649,4109.6,4109.5,2.43338605]
[1760304774549,0.005,4109.9,4109.8,2.43320842]
[1760304775860,0.005,4109.9,4109.8,3.18840842]
[1760304776054,1e-08,4109.9,4109.8,3.18840842]
[1760304776366,1e-08,4109.9,4109.8,3.64270842]
[1760304777206,0.17728325,4110.3,4110.2,2.43297163]
[1760304777207,1e-08,4110.3,4110.2,2.43297163]
[1760304777676,1e-08,4110.3,4110.2,3.00887163]
[1760304777876,1e-08,4110.9,4110.8,3.06621652]
[1760304778548,1e-08,4110.9,4110.8,2.43261652]
[1760304778749,1e-08,4110.9,4110.8,3.06621652]
[1760304779094,1e-08,4110.9,4110.8,3.52051652]
[1760304779243,1e-08,4110.9,4110.8,2.43261652]
[1760304779788,1e-08,4110.9,4110.8,3.06621652]
[1760304780289,1e-08,4110.9,4110.8,2.43261652]
[1760304780585,1e-08,4110.9,4110.2,2.43296097]
[1760304780880,1e-08,4110.9,4110.8,2.43261652]
[1760304781687,1e-08,4110.9,4110.7,2.43266601]
[1760304782051,1e-08,4110.9,4110.8,2.43261652]
[1760304782287,0.001,4110.3,4110.0,2.43309002]
[1760304782452,0.001,4110.3,4109.5,2.43338605]
[1760304782990,0.001,4110.3,4110.2,2.43297163]
[1760304783198,0.001,4110.3,4109.3,0.002]
[1760304783397,0.001,4110.3,4110.2,2.43297163]
[1760304784696,0.001,4110.3,4109.3,0.002]
[1760304784697,0.4659,4110.3,4109.3,2.43549982]
[1760304784898,0.4649,4110.2,4109.3,0.002]
[1760304785209,0.4649,4110.2,4109.6,2.43331955]
[1760304785512,0.4649,4110.2,4109.7,2.43325678]
[1760304785678,0.4649,4110.1,4109.7,2.43325678]
[1760304785878,0.001,4110.3,4109.3,0.002]
[1760304785879,0.4649,4110.0,4109.3,0.002]
[1760304786081,0.4649,4110.0,4109.5,2.43336381]
[1760304786420,0.4649,4109.9,4109.3,0.002]
[1760304786619,0.4649,4109.9,4109.5,2.4333798]
[1760304786819,0.001,4110.3,4109.5,2.43338291]
[1760304786988,0.4649,4109.8,4109.4,2.43344059]
[1760304787186,2.43391764,4110.3,4109.4,2.43344059]
[1760304787397,2.43391764,4110.3,4108.1,0.188]
[1760304787398,0.001,4110.3,4108.1,0.188]
[1760304787609,0.2333,4109.5,4106.6,0.4543]
[1760304787817,0.1216,4108.6,4107.9,0.1216]
[1760304787982,0.1216,4108.6,4108.3,2.43407022]
[1760304788511,0.4649,4108.5,4108.2,2.43410062]
[1760304788875,0.4649,4108.5,4108.3,2.43408631]
[1760304790013,0.1216,4108.6,4107.9,0.1216]
[1760304790311,0.1216,4108.6,4104.0,1.13629999]
[1760304790312,0.1216,4108.1,4107.2,2.43474873]
[1760304790487,2.90364239,4108.4,4107.3,2.43463947]
[1760304790689,1.92,4108.1,4107.3,2.43463947]
[1760304790912,2.43410448,4108.3,4107.3,2.43463947]
[1760304791214,0.4696,4108.2,4107.3,2.43467498]
[1760304791604,0.4696,4108.2,4107.4,2.43461379]
[1760304791911,0.4696,4108.2,4107.2,2.43474361]
[1760304792219,0.4696,4108.2,4107.6,2.43449806]
[1760304792389,0.4696,4108.2,4107.5,2.43455437]
[1760304792584,0.4696,4108.2,4107.6,2.43449313]
[1760304792807,0.4696,4108.2,4107.5,2.43453498]
[1760304793249,0.4696,4108.2,4107.1,0.007]
[1760304793424,0.4696,4108.2,4107.8,2.43436475]
[1760304793622,0.4696,4108.1,4107.8,2.43436475]
[1760304793823,0.4696,4108.0,4107.8,2.43436475]
[1760304794018,0.4696,4108.0,4107.1,0.007]
[1760304794235,0.4196,4108.0,4107.9,2.43433384]
[1760304794909,2.43362938,4109.1,4107.9,2.43433384]
[1760304795218,2.43388537,4108.7,4107.1,0.007]
[1760304795553,0.70871826,4109.5,4108.0,2.43425318]
[1760304795732,2.43374905,4108.9,4108.0,2.43425318]
[1760304796138,2.90340591,4108.8,4107.2,4.86949746]
[1760304796353,2.43397726,4108.6,4107.5,2.43451681]
[1760304796509,0.4696,4108.5,4107.1,0.007]
[1760304796710,0.4696,4108.5,4107.7,2.43444671]
[1760304796928,0.4696,4108.4,4107.7,2.43444671]
[1760304797719,4.35415607,4108.2,4107.1,0.007]
[1760304798022,2.43434485,4107.9,4107.1,0.007]
[1760304798424,2.90400366,4107.8,4107.1,0.007]
[1760304798623,0.4696,4107.8,4107.1,0.007]
[1760304798861,0.4696,4107.8,4106.1,0.005]
[1760304799013,0.4696,4107.8,4103.1,1.00499999]
[1760304799014,1.92,4106.1,4103.1,0.005]
[1760304799212,2.43601547,4105.1,4103.1,0.005]
[1760304799442,0.694,4106.0,4103.1,0.005]
[1760304799651,0.6976,4105.0,4103.7,2.4368253]
[1760304799838,0.4696,4104.9,4103.1,0.005]
[1760304800170,0.4696,4104.9,4095.3,0.1473]
[1760304800171,0.99999999,4102.4,4095.3,0.1473]
[1760304800332,15.36703854,4099.7,4095.3,0.1473]
[1760304800531,1.72965074,4102.3,4097.8,15.36703854]
[1760304800719,1.92,4101.8,4100.0,2.43901439]
[1760304800924,2.793179,4101.6,4098.5,0.1084]
[1760304801120,0.40844196,4102.3,4097.1,0.429]
[1760304801121,15.36703854,4100.7,4097.1,0.429]
[1760304801319,0.4696,4100.6,4097.2,0.429]
[1760304801520,0.4696,4100.5,4097.2,0.429]
[1760304801754,0.4696,4100.4,4099.6,2.43921965]
[1760304801956,0.17443159,4102.1,4097.9,2.44027428]
[1760304801957,0.4696,4100.3,4099.5,2.43928102]
[1760304802159,0.4696,4101.0,4098.6,0.429]
[1760304802524,0.4696,4101.0,4100.2,2.43889453]
[1760304802725,0.005,4100.9,4100.2,2.43389453]
[1760304802957,0.005,4100.9,4099.5,2.43928121]
[1760304803161,0.005,4100.9,4098.4,0.1084]
[1760304803465,0.228,4100.8,4098.2,0.5374]
[1760304803624,0.4696,4100.7,4098.2,0.5374]
[1760304803824,0.4696,4100.7,4098.2,0.1084]
[1760304804040,0.005,4100.9,4100.8,0.6336]
[1760304804724,0.005,4100.9,4100.7,2.43859777]
[1760304804925,0.30224686,4100.9,4100.7,2.43859777]
[1760304805123,0.005,4101.9,4100.8,0.429]
[1760304805324,17.846382,4101.7,4098.8,0.429]
[1760304805559,17.846382,4101.7,4097.1,0.005]
[1760304805560,17.160985,4101.5,4097.1,0.005]
[1760304805732,0.228,4098.9,4097.1,0.005]
[1760304806061,0.228,4098.9,4097.3,2.44060098]
[1760304806261,0.4696,4098.8,4097.1,0.005]
[1760304806570,0.4696,4098.8,4097.5,2.44050773]
[1760304806738,0.4696,4098.8,4097.1,0.005]
[1760304806923,1.92,4098.4,4097.1,0.005]
[1760304807260,1.92,4098.6,4097.1,0.005]
[1760304807464,0.4696,4098.3,4098.1,0.005]
[1760304807670,2.471,4098.2,4098.1,0.005]
[1760304807895,28.644366,4098.2,4098.1,0.005]
[1760304808205,30.564366,4098.2,4098.1,0.005]
[1760304808764,2.3896,4098.2,4098.1,0.005]
[1760304809197,30.564366,4098.2,4098.1,0.005]
[1760304810206,33.00446165,4098.2,4098.1,0.005]
[1760304812892,30.564366,4098.2,4098.1,0.005]
[1760304813265,33.00446165,4098.2,4098.1,0.005]
[1760304814171,33.16960347,4098.2,4098.1,0.005]
[1760304814623,0.00095246,4098.0,4097.1,0.005]
[1760304814764,0.228,4097.2,4097.1,0.005]
[1760304814963,0.69864781,4097.2,4097.1,0.005]
[1760304815198,0.4863859,4099.7,4097.2,4.8813824]
[1760304815401,2.43620922,4104.8,4098.8,0.2151]
[1760304815564,0.0170933,4101.1,4101.0,2.43842965]
[1760304815766,0.1874,4102.4,4101.8,2.43795406]
[1760304816007,0.005,4104.9,4101.8,2.43795406]
[1760304816008,0.1874,4103.8,4101.8,2.08805258]
[1760304816305,0.005,4104.9,4101.9,3.52705258]
[1760304816530,0.005,4104.9,4102.2,2.43771634]
[1760304816676,0.005,4104.9,4103.7,2.43680549]
[1760304817066,1e-08,4103.9,4103.7,2.43180549]
[1760304817565,1e-08,4104.9,4103.8,0.429]
[1760304817790,1e-08,4104.9,4104.8,2.43617228]
[1760304818177,1e-08,4104.9,4104.8,2.86517228]
[1760304818877,1e-08,4105.9,4105.3,2.43585764]
[1760304819101,1e-08,4105.9,4105.8,2.43557893]
[1760304819289,1e-08,4106.9,4106.8,2.43498587]
[1760304819681,1e-08,4106.9,4106.8,2.88848587]
[1760304819876,1e-08,4106.9,4106.8,2.43498587]
[1760304820318,1e-08,4106.9,4105.6,0.225]
[1760304820500,1e-08,4106.9,4106.7,2.43502083]
[1760304820827,1e-08,4106.9,4106.1,2.43536166]
[1760304821028,1e-08,4106.9,4104.6,0.4535]
[1760304821188,7.148602,4106.6,4105.0,2.4360123]
[1760304821383,9.96292185,4106.4,4104.0,2.38659129]
[1760304821689,11.778322,4106.1,4104.6,2.43628515]
[1760304821883,4.455635,4105.9,4104.4,2.43635772]
[1760304822098,1.92,4105.6,4103.4,2.43699586]
[1760304822414,0.0508,4105.5,4103.1,0.005]
[1760304822591,2.48657132,4105.5,4104.0,2.43663742]
[1760304823126,2.48657132,4105.5,4103.1,0.005]
[1760304823127,2.022,4105.3,4103.4,2.43696347]
[1760304823325,1.92,4105.4,4104.4,2.43640436]
[1760304823532,1.92,4105.4,4103.2,2.43712224]
[1760304823740,1.20166046,4105.2,4101.1,0.00373758]
[1760304823947,1.20166046,4105.2,4098.1,0.005]
[1760304823948,2.55881989,4103.1,4098.1,0.005]
[1760304824109,4.86069,4101.0,4098.1,0.005]
[1760304824292,4.86069,4101.7,4099.0,0.4318]
[1760304824497,1.92,4101.4,4099.0,0.4318]
[1760304824697,4.86069,4101.0,4099.0,0.4318]
[1760304824894,1.92,4100.0,4098.1,0.005]
[1760304825140,2.43921772,4099.7,4098.1,0.005]
[1760304825438,1.92,4099.5,4098.1,0.005]
[1760304825617,1.92,4099.7,4098.1,0.005]
[1760304825793,4.86069,4099.3,4098.1,0.005]
[1760304825997,4.86069,4099.4,4098.1,0.005]
[1760304826195,1.92,4099.6,4098.1,0.005]
[1760304826396,0.976,4101.3,4098.1,0.005]
[1760304826397,1.92,4099.3,4098.1,0.005]
[1760304826620,4.86069,4099.2,4098.1,0.005]
[1760304826847,4.86069,4099.3,4098.1,0.005]
[1760304826996,4.86069,4098.3,4098.1,0.005]
[1760304827197,4.85569,4098.7,4097.1,0.005]
[1760304827395,2.44011107,4098.2,4097.1,0.005]
[1760304827622,1.92,4098.3,4097.1,0.005]
[1760304827838,4.85569,4098.2,4097.1,0.005]
[1760304828044,4.85569,4098.0,4097.1,0.005]
[1760304828210,1.92,4098.2,4097.1,0.005]
[1760304828409,1.92,4098.0,4097.1,0.005]
[1760304828721,4.85569,4097.9,4097.1,0.005]
[1760304829308,0.476535,4097.9,4097.1,0.005]
[1760304829619,4.85569,4098.4,4097.1,0.005]
[1760304829946,4.85569,4098.4,4097.2,0.4318]
[1760304830148,14.27915871,4101.3,4098.3,2.44003611]
[1760304830149,6.77569,4099.9,4098.3,2.44003611]
[1760304830364,4.85569,4099.6,4098.5,2.4399137]
[1760304830642,4.85569,4100.0,4097.9,2.44027428]
[1760304831008,1.92,4099.9,4098.8,2.4397317]